[Event "8th Svetozar Gligoric Cup 2022"]
[Site "Paracin"]
[Date "2022.06.03"]
[Round "5.12"]
[White "Brankovic, Vladislav"]
[Black "Vuksanovic, Zvezdan"]
[Result "1-0"]
[ECO "B08"]
[WhiteElo "2114"]
[BlackElo "2187"]
[Annotator "TA"]
[PlyCount "73"]
[EventDate "2022.05.31"]
[EventType "team-tourn"]
[EventCountry "SRB"]
[SourceTitle "playchess.com"]
[Source "ChessBase"]
[SourceQuality "1"]
[TimeControl "40/5400+30:900+30"]

{[%evp 13,73,18,79,9,58,67,50,55,81,83,93,84,150,96,187,181,358,394,396,378,381,358,354,351,531,542,700,697,1345,1331,1306,1323,1278,1252,1229,1220,1134,1114,1154,912,1458,912,29989,29988,29992,1006,2795,1626,1392,927,1726,1716,2098,2098,1934,1883,29982,29983,29982,29980,29989,29990]} 1. e4 {[%emt 0:00:22]} d6 {[%emt 0:00:14]} 2. d4 {[%emt 0:00:04]} Nf6 {[%emt 0:00:12]} 3. Nc3 {[%emt 0:00:08]} g6 {[%emt 0:00:12]} 4. Nf3 {[%emt 0:01:06]} Bg7 {[%emt 0:00:34]} 5. Be3 {[%emt 0:02:05]} O-O {[%emt 0:00:14]} 6. Qd2 {[%emt 0:00:09]} c6 {[%emt 0:01:04]} 7. Bh6 {[%emt 0:00:56]} Qa5 {[%emt 0:02:24]} (7... d5 $11) 8. Bd3 {[%emt 0:03:08] B08: Pirc Defence: Classical System.} (8. h4 $16) 8... Nbd7 {[%emt 0:00:19]} (8... Bg4 $11) 9. h4 $14 {[%emt 0:03:46]} Bxh6 {[%emt 0:06:57]} 10. Qxh6 {[%emt 0:00:05] And now Ng5 would win. White is slightly better.} Qh5 {[%emt 0:00:06]} 11. Qd2 {[%emt 0:01:14] [#] White is more active.} e5 $146 {[%emt 0:00:57]} ({Predecessor:} 11... Qa5 12. Qg5 Qxg5 13. hxg5 Nh5 14. O-O-O Nf4 15. Rh2 Nxd3+ 16. cxd3 Kg7 17. Rdh1 Rh8 18. Nd1 Nf8 19. Ne3 {½-½ (19) Kirchner,M (1774)-Trice,M (1878) Kitzingen 2010}) 12. O-O-O {[%emt 0:05:09]} Ng4 {[%emt 0:04:00]} (12... b5 $142) 13. Kb1 {[%emt 0:07:19]} (13. Be2 $142) 13... Ndf6 {[%emt 0:07:07]} (13... Qh6 $16 {keeps fighting.}) 14. dxe5 {[%emt 0:06:04]} dxe5 {[%emt 0:00:11]} (14... Nxe5 15. Be2 Nxf3 16. Qxd6 (16. gxf3 Be6 $16) (16. Bxf3 Bg4 $16) 16... Qe5) 15. Ng5 $18 {[%emt 0:00:42]} Ne8 {[%emt 1:13:29]} 16. f3 {[%emt 0:02:11]} Ngf6 {[%emt 0:00:00]} 17. g4 {[%emt 0:01:34]} Qh6 {[%emt 0:00:00]} 18. Bc4 {[%emt 0:02:33]} Qg7 {[%emt 0:00:00]} (18... b5 {was called for.} 19. Bb3 a5) 19. h5 {[%emt 0:04:17] Hoping for h6.} h6 {[%emt 0:00:00]} 20. Nxf7 {[%emt 0:01:53]} Rxf7 {[%emt 0:00:00]} 21. hxg6 {[%emt 0:00:08]} Qxg6 {[%emt 0:00:00]} 22. Rxh6 {[%emt 0:00:04]} Qg7 {[%emt 0:00:00]} 23. Rdh1 {[%emt 0:00:29][%cal Bd1h1,Bh1h7,Bh7e7][%mdl 32]} Kf8 {[%emt 0:00:00]} 24. Rh8+ {[%emt 0:05:23]} Ke7 {[%emt 0:00:00]} 25. Bxf7 {[%emt 0:10:56]} (25. R1h6 Rf8 26. Rxf8 (26. Qh2 Rxh8 27. Rxh8 Be6 $11) 26... Kxf8 $16) 25... Qxf7 {[%emt 0:00:00]} 26. Qg5 {[%emt 0:01:16]} Qe6 {[%emt 0:00:00]} 27. R1h7+ {[%emt 0:01:51]} Kd6 {[%emt 0:00:00] [#]} 28. Rxe8 $1 {[%emt 0:08:18][%mdl 512]} Nxe8 {[%emt 0:00:00]} (28... Qxe8 29. Qxf6+) 29. Qd8+ {[%emt 0:00:35]} (29. Qd2+ $142 Qd5 30. Nxd5 (30. Qxd5+ cxd5 31. Rh6+ Kc5 $16) 30... Nf6 31. Nxf6+ Kc5 32. Qa5+ b5 33. b4+ Kc4 34. Qa3 Be6 35. Qb3+ Kd4 36. Qd3#) 29... Kc5 {[%emt 0:00:00]} 30. Re7 {[%emt 0:00:11]} Bd7 {[%emt 0:00:00]} 31. Qa5+ {[%emt 0:03:19]} ({Weaker is} 31. Qxa8 Qxe7 32. Qxb7 (32. Qxa7+ Kd6 $16) 32... Kd6 $16) 31... b5 {[%emt 0:00:00]} 32. Na4+ {[%emt 0:00:33]} Kd6 {[%emt 0:00:00]} 33. Qb4+ {[%emt 0:00:05][%mdl 64] [#] Deflection} Kc7 {[%emt 0:00:00]} 34. Rxe6 {[%emt 0:00:03] White wants to mate with Qa5+.} Bxe6 {[%emt 0:00:00]} 35. Qe7+ {[%emt 0:00:05] White mates.} Bd7 {[%emt 0:00:00]} 36. Nc5 {[%emt 0:00:03]} Rd8 {[%emt 0:00:00]} 37. Ne6+ {[%emt 0:00:03] White took control after the opening.  Weighted Error Value: White=0.24 (precise) /Black=1.21} 1-0